bitfinex-derivatives/quotes_ETHF0:USTF0_20260209
["timestamp","ask_amount","ask_price","bid_price","bid_amount"]
[1770629610929,5.95138238,2045.7,2045.4,5.85375685]
[1770629611828,5.95138238,2045.5,2045.0,5.85031839]
[1770629612728,5.95138238,2045.4,2044.7,5.85031839]
[1770629612931,5.95138238,2045.3,2044.7,5.85031839]
[1770629613426,5.95138238,2045.2,2044.3,5.85031839]
[1770629613626,2.90762239,2045.1,2044.3,5.85031839]
[1770629613824,2.90762239,2045.1,2044.3,5.85430905]
[1770629614023,5.95138238,2045.0,2044.3,5.85430905]
[1770629614427,5.95138238,2045.0,2043.7,2.03393626]
[1770629614428,5.95138238,2044.8,2044.1,5.85031839]
[1770629615423,5.95581642,2044.8,2044.1,0.00625566]
[1770629615735,5.95138238,2044.4,2043.5,6.14323258]
[1770629616031,5.95138238,2044.4,2043.5,5.85031839]
[1770629616432,5.95138238,2044.2,2043.3,5.85031839]
[1770629616633,5.95138238,2044.2,2043.3,5.85470358]
[1770629617428,2.90762239,2044.0,2042.9,5.85031839]
[1770629617632,5.95138238,2043.9,2042.9,5.85031839]
[1770629618132,5.95138238,2043.8,2042.9,5.85031839]
[1770629618327,5.95138238,2043.7,2042.4,6.09533839]
[1770629618726,5.95138238,2043.6,2042.7,5.85031839]
[1770629618926,5.95138238,2043.9,2042.7,5.85031839]
[1770629620036,5.95138238,2043.9,2042.9,5.85031839]
[1770629620437,46.75138238,2044.3,2043.1,5.85031839]
[1770629620636,46.75138238,2044.3,2043.4,0.2449]
[1770629620837,5.95138238,2044.2,2043.4,6.09521839]
[1770629625945,5.95138238,2044.2,2043.4,5.85031839]
[1770629626146,5.95138238,2044.2,2042.9,6.14163708]
[1770629626545,5.95138238,2044.2,2043.1,6.14163708]
[1770629629244,5.95138238,2044.2,2043.5,6.14163708]
[1770629630042,40.8,2044.3,2043.5,6.14163708]
[1770629630246,6.07603146,2044.2,2043.5,6.14163708]
[1770629630445,6.07603146,2044.2,2043.4,6.38653708]
[1770629642155,43.24704149,2044.6,2043.9,6.14163708]
[1770629642156,8.9564287,2044.6,2043.9,6.14163708]
[1770629642360,6.07603146,2044.5,2044.0,6.38646708]
[1770629642558,6.07603146,2044.7,2044.0,6.38646708]
[1770629642862,6.07603146,2044.6,2044.0,6.38646708]
[1770629643363,6.0804655,2044.8,2044.0,6.38646708]
[1770629643764,0.00443404,2044.8,2044.3,6.14163708]
[1770629643965,6.07603146,2045.0,2044.5,6.14163708]
[1770629644163,8.9564287,2045.2,2044.5,6.14163708]
[1770629644463,6.07603146,2045.1,2044.5,6.14163708]
[1770629644863,0.00238496,2045.1,2044.9,6.14163708]
[1770629645063,2.88039724,2045.5,2044.9,6.14163708]
[1770629645064,8.9564287,2045.5,2044.9,6.14163708]
[1770629645265,6.07603146,2045.5,2045.1,6.14163708]
[1770629645465,6.07603146,2045.4,2045.0,6.38634708]
[1770629645667,6.07603146,2045.4,2045.0,0.24471]
[1770629646058,6.08104783,2045.4,2044.4,6.26641]
[1770629646362,6.08104783,2045.4,2044.4,6.38640708]
[1770629646557,6.08104783,2045.4,2044.7,6.14163708]
[1770629647359,6.08104783,2045.4,2044.6,0.24476]
[1770629647360,0.00501637,2045.4,2044.9,6.14163708]
[1770629647565,0.00501637,2045.4,2044.8,0.24473]
[1770629647566,6.08104783,2045.4,2044.8,0.24473]
[1770629647866,6.08104783,2045.4,2044.8,6.38636708]
[1770629649164,6.08104783,2045.4,2044.8,0.24473]
[1770629650259,6.08104783,2045.4,2044.8,6.38636708]
[1770629651770,0.00501637,2045.4,2044.8,6.38636708]
[1770629652668,6.07603146,2045.8,2045.2,0.24469]
[1770629652860,6.07603146,2045.8,2045.2,6.38632708]
[1770629653060,6.07603146,2046.0,2045.2,6.38632708]
[1770629653672,46.88207542,2046.0,2045.2,6.38632708]
[1770629653971,46.88207542,2046.0,2045.5,6.14163708]
[1770629654168,0.00604396,2046.0,2045.7,6.14163708]
[1770629654563,6.08207542,2046.0,2045.6,0.24464]
[1770629654768,6.08207542,2046.0,2045.6,6.38627708]
[1770629655070,0.00604396,2046.0,2045.6,6.38627708]
[1770629655270,5.87222803,2046.0,2045.6,0.24464]
[1770629655972,5.87222803,2046.0,2045.6,5.88962354]
[1770629656266,0.00604396,2046.0,2045.6,5.88962354]
[1770629657667,5.87118326,2046.0,2045.6,0.24464]
[1770629664074,5.87118326,2046.0,2045.6,5.82314893]
[1770629664279,5.87118326,2046.0,2045.6,0.24464]
[1770629664876,5.87118326,2046.0,2045.5,0.00452223]
[1770629665085,5.87118326,2046.0,2045.0,5.82320893]
[1770629666179,5.87118326,2046.0,2045.0,5.82896803]
[1770629668277,5.87118326,2046.0,2045.0,6.11783321]
[1770629670880,5.8651393,2045.9,2045.0,6.11783321]
[1770629672184,5.8651393,2045.8,2045.0,6.11783321]
[1770629674186,5.8651393,2045.7,2045.0,6.11783321]
[1770629674781,5.8651393,2045.7,2045.0,0.53932428]
[1770629675587,5.8651393,2045.7,2045.0,6.11783321]
[1770629677587,8.74553654,2045.9,2045.3,5.57850893]
[1770629677782,5.8651393,2045.9,2045.3,5.57850893]
[1770629677987,5.8651393,2045.9,2045.2,5.82319893]
[1770629678785,8.74553654,2045.8,2045.2,0.24469]
[1770629679091,5.8651393,2045.7,2045.2,0.24469]
[1770629680487,5.8651393,2045.6,2045.2,0.24469]
[1770629684191,5.8651393,2045.6,2045.0,0.0057591]
[1770629684394,8.74553654,2045.6,2045.0,0.0057591]
[1770629684594,8.74553654,2045.4,2044.7,0.24474]
[1770629684794,5.8651393,2045.3,2044.7,0.24474]
[1770629684996,5.8651393,2045.2,2044.7,0.24474]
[1770629685293,5.8651393,2045.2,2044.5,5.29480856]
[1770629685690,5.8651393,2045.2,2044.5,5.30051782]
[1770629688894,5.8651393,2045.2,2044.5,0.00570926]
[1770629689100,5.62341201,2044.9,2044.2,6.82359071]
[1770629689495,5.62341201,2044.9,2044.2,0.2448]
[1770629689695,5.62341201,2044.7,2044.0,5.29480856]
[1770629689900,5.62341201,2044.6,2044.0,5.29480856]
[1770629690095,5.62341201,2044.6,2044.0,5.29979894]
[1770629690302,5.62341201,2044.6,2044.0,0.00499038]
[1770629690797,43.24704149,2045.0,2044.6,5.29480856]
[1770629691004,5.75034738,2045.8,2044.9,0.24472]
[1770629691998,5.75034738,2045.8,2044.9,1.24771819]
[1770629692200,5.75034738,2045.8,2044.9,0.24472]
[1770629692606,5.75034738,2045.8,2044.9,1.49342277]
[1770629696400,40.8,2045.7,2044.9,1.49342277]
[1770629696604,5.62341201,2045.6,2045.0,1.21307566]
[1770629698305,5.62341201,2045.9,2045.2,1.26184336]
[1770629698607,5.62945597,2046.0,2045.3,1.80474401]
[1770629699606,5.62945597,2046.0,2045.3,2.04941401]
[1770629700606,5.62945597,2046.0,2045.3,0.24467]
[1770629700803,5.62945597,2046.0,2044.9,1.93273082]
[1770629701208,5.62945597,2046.0,2044.8,4.88192145]
[1770629701509,5.62945597,2046.0,2044.9,1.95897475]
[1770629701900,5.62945597,2046.0,2045.1,1.96761849]
[1770629702303,5.62945597,2046.0,2045.3,1.99347541]
[1770629703916,3.96e-06,2046.0,2045.7,2.16548353]
[1770629704609,5.62341201,2046.5,2045.8,2.41645444]
[1770629704810,5.62341201,2046.8,2046.2,2.41641444]
[1770629705208,5.62341201,2046.6,2046.2,2.44038503]
[1770629705408,5.62699137,2046.6,2046.2,2.44553967]
[1770629705816,4.62699137,2046.6,2046.2,2.44553967]
[1770629706415,0.00357936,2046.6,2046.2,2.44553967]
[1770629708922,5.62341201,2046.9,2046.2,2.44553967]
[1770629709124,5.62341201,2047.2,2046.2,2.44553967]
[1770629709322,5.62341201,2047.2,2046.5,3.58442627]
[1770629709822,5.62876157,2047.2,2046.5,3.58442627]
[1770629710321,5.62876157,2047.2,2046.5,0.24452]
[1770629712918,5.62876157,2047.2,2046.5,3.95435965]
[1770629713416,5.62341201,2047.7,2047.0,3.45761971]
[1770629713623,5.62341201,2047.7,2047.1,0.24446]
[1770629714122,5.62341201,2047.7,2046.6,3.47018668]
[1770629714322,5.62341201,2047.7,2046.5,0.52773107]
[1770629714620,5.62897268,2047.7,2046.5,0.52773107]
[1770629714824,5.62897268,2047.7,2046.5,0.24452]
[1770629715618,5.62897268,2047.7,2046.5,3.16662468]
[1770629717325,5.62897268,2047.7,2046.5,0.24452]
[1770629717828,5.62897268,2047.7,2046.5,3.21845651]
[1770629718325,5.62897268,2047.7,2046.6,2.99525204]
[1770629718723,5.62897268,2047.7,2046.7,3.24872501]
[1770629719622,5.62897268,2047.7,2047.0,3.03930024]
[1770629719927,5.62897268,2047.7,2046.9,0.24448]
[1770629720527,5.62897268,2047.7,2046.6,3.05243103]
[1770629720724,5.62897268,2047.7,2046.4,0.28294762]
[1770629720922,5.62897268,2047.7,2046.4,3.05243103]
[1770629721423,5.62897268,2047.7,2046.6,3.06298045]
[1770629721730,5.62897268,2047.7,2046.5,0.24453]
[1770629724228,48.96634195,2047.7,2046.5,0.24453]
[1770629724427,6.48179873,2047.6,2046.5,0.24453]
[1770629725924,6.48179873,2047.6,2046.5,3.30861832]
[1770629726124,6.48179873,2047.6,2046.8,3.06408832]
[1770629728731,6.48179873,2047.6,2046.7,0.24451]
[1770629728931,6.48179873,2047.6,2046.7,3.329256]
[1770629729326,6.48179873,2047.6,2046.7,0.24451]
[1770629729633,6.48179873,2047.6,2046.4,3.38162335]
[1770629731332,6.48179873,2047.6,2046.5,3.34625898]
[1770629733431,6.48179873,2047.6,2046.7,0.24451]
[1770629733731,6.48179873,2047.6,2046.8,3.20007889]
[1770629734134,6.48179873,2047.6,2046.7,0.24451]
[1770629734836,6.48179873,2047.6,2046.7,3.45448201]
[1770629735236,6.48179873,2047.6,2046.7,0.24451]
[1770629735439,6.48179873,2047.4,2046.4,3.50578579]
[1770629735638,6.48179873,2047.3,2046.4,0.28788139]
[1770629735935,6.48179873,2047.3,2046.3,6.14919867]
[1770629736536,6.48179873,2047.3,2046.4,3.23573292]
[1770629736830,6.48179873,2047.3,2046.5,3.23573292]
[1770629737035,6.48179873,2047.3,2046.6,3.48784892]
[1770629737233,6.48179873,2047.3,2046.6,6.41079562]
[1770629737433,6.48179873,2047.3,2046.6,3.48784892]
[1770629737739,6.48179873,2047.3,2046.6,0.24452]
[1770629738737,6.48179873,2047.3,2046.4,0.29202375]
[1770629738937,6.48179873,2047.2,2046.2,6.17628248]
[1770629739139,6.48179873,2047.1,2046.2,6.17628248]
[1770629739738,6.48179873,2047.1,2046.3,3.27626389]
[1770629741540,6.48179873,2047.1,2046.2,2.92810134]
[1770629742831,6.48179873,2047.1,2046.2,0.00515464]
[1770629743542,49.819168,2047.1,2046.2,0.00515464]
[1770629743748,6.48179873,2046.9,2046.2,0.00515464]
[1770629744139,6.48179873,2046.7,2046.0,0.24458]
[1770629744442,6.48179873,2046.7,2045.9,2.9229467]
[1770629744643,6.48179873,2046.7,2045.8,2.9229467]
[1770629744840,6.48179873,2046.7,2045.8,6.21598136]
[1770629745037,6.48179873,2046.7,2045.8,3.29303466]
[1770629745242,6.48179873,2046.7,2045.8,3.2970337]
[1770629745638,6.48179873,2046.7,2045.7,2.9229467]
[1770629745639,6.48179873,2046.7,2045.7,0.9058666]
[1770629745843,5.96455892,2046.5,2045.1,4.1672541]
[1770629746041,5.96455892,2046.4,2045.1,4.1672541]
[1770629746541,5.96455892,2046.4,2045.3,4.18580791]
[1770629746743,5.96455892,2046.4,2045.3,4.19070053]
[1770629748242,5.96455892,2046.4,2045.3,0.00489262]
[1770629749543,5.96455892,2046.2,2045.3,4.46960446]
[1770629749741,5.96888565,2046.2,2045.3,4.46960446]
[1770629750646,5.96888565,2046.2,2045.3,0.00489262]
[1770629750942,5.96888565,2046.2,2045.3,4.47607091]
[1770629751147,5.96455892,2046.4,2045.6,4.71581829]
[1770629751446,5.96455892,2046.4,2045.9,4.47117829]
[1770629751747,46.76455892,2046.4,2045.9,4.47117829]
[1770629751947,5.96455892,2046.3,2045.9,4.47117829]
[1770629752245,5.96864723,2046.3,2045.9,4.47117829]
[1770629753956,5.96864723,2046.3,2045.8,4.64934752]
[1770629758354,0.00408831,2046.3,2045.8,4.64934752]
[1770629758860,5.96864723,2046.3,2045.8,4.64934752]
[1770629759064,0.00408831,2046.3,2045.8,4.64934752]
[1770629759751,5.96864723,2046.3,2045.8,4.64934752]
[1770629760156,5.96864723,2046.3,2045.8,0.24461]
[1770629761562,5.96864723,2046.3,2045.8,4.71026277]
[1770629761962,5.96864723,2046.3,2045.8,4.71003273]
[1770629763866,5.96864723,2046.3,2045.8,0.24461]
[1770629764168,5.96864723,2046.3,2045.8,4.76465099]
[1770629765763,5.96864723,2046.3,2045.8,0.24461]
[1770629766161,5.96864723,2046.3,2045.4,4.51473541]
[1770629766373,5.96864723,2046.3,2045.3,4.76429803]
[1770629767874,5.96864723,2046.3,2045.3,0.24956262]
[1770629768174,8.86620827,2046.3,2045.3,4.77863088]
[1770629768376,5.96455892,2046.2,2045.3,4.77863088]
[1770629769571,5.96455892,2046.2,2045.3,0.24956262]
[1770629769876,5.96455892,2046.1,2045.3,0.24956262]
[1770629772475,5.96455892,2046.0,2045.3,0.24956262]
[1770629772674,8.86211996,2046.0,2045.3,0.24956262]
[1770629772876,5.96455892,2045.9,2045.3,0.24956262]
[1770629774176,2.89756104,2046.0,2045.3,0.24956262]
[1770629774177,5.96455892,2046.1,2045.4,4.59733]
[1770629775076,5.96455892,2046.1,2045.5,4.84062988]
[1770629775579,6.13758656,2046.3,2045.5,4.84062988]
[1770629776582,6.13349825,2046.5,2046.0,4.60325309]
[1770629776880,6.13349825,2046.7,2046.0,4.60325309]
[1770629777081,6.13349825,2046.6,2046.0,4.60325309]
[1770629777582,6.13818409,2046.6,2046.0,4.60325309]
[1770629778183,0.00468584,2046.6,2046.2,4.78645355]
[1770629778381,6.6857167,2046.9,2046.2,4.78645355]
[1770629778782,47.4857167,2046.9,2046.2,4.78645355]
[1770629779284,6.6857167,2046.8,2046.2,4.78645355]
[1770629779678,6.69006158,2046.9,2046.4,4.79911732]
[1770629779878,6.6857167,2047.1,2046.6,4.79911732]
[1770629780282,6.6857167,2047.0,2046.6,4.79911732]
[1770629781184,6.68999396,2047.0,2046.6,4.79911732]
[1770629783384,6.68999396,2047.0,2046.5,4.99385208]
[1770629784786,0.00427726,2047.0,2046.5,4.99385208]
[1770629785687,6.68999396,2047.0,2046.5,0.24453]
[1770629786386,6.68999396,2047.0,2046.0,4.73968388]
[1770629791495,0.00427726,2047.0,2046.6,4.76333486]
[1770629791992,0.00427726,2047.0,2046.5,0.24453]
[1770629791993,6.6857167,2047.5,2046.9,0.24448]
[1770629792295,6.6857167,2047.5,2047.0,4.76116166]
[1770629792995,6.69020921,2047.5,2047.0,4.76515472]
[1770629794592,6.69020921,2047.5,2047.0,0.00399306]
[1770629795989,6.69020921,2047.5,2046.5,4.69706657]
[1770629796299,6.69020921,2047.5,2046.3,4.94325194]
[1770629796992,6.69020921,2047.5,2046.3,4.94808321]
[1770629797496,6.69020921,2047.5,2046.3,10.96416321]
[1770629797699,6.69020921,2047.5,2046.6,4.71951138]
[1770629806603,6.69020921,2047.5,2046.8,4.62682796]
[1770629810610,6.36319031,2047.5,2047.0,4.60199321]
[1770629811004,6.36319031,2047.5,2046.9,0.24448]
[1770629811205,6.36319031,2047.5,2046.9,4.84349494]
[1770629813010,6.36319031,2047.5,2046.9,0.24448]
[1770629815320,6.3586978,2047.4,2046.4,3.16395969]
[1770629815620,6.3586978,2047.4,2046.4,7.91562024]
[1770629816014,6.3586978,2047.4,2046.5,4.75166055]
[1770629818419,6.3586978,2047.3,2046.5,4.75166055]
[1770629819520,6.3586978,2047.3,2046.6,4.78951492]
[1770629820819,9.26075135,2047.5,2047.0,4.78546308]
[1770629821015,6.36319031,2047.5,2047.0,4.78546308]
[1770629821515,6.36319031,2047.5,2046.9,0.24448]
[1770629821918,6.36319031,2047.5,2046.9,5.03084673]
[1770629822720,6.36319031,2047.5,2046.9,7.95026642]
[1770629822916,6.36319031,2047.5,2047.1,0.24446]
[1770629823111,43.33736927,2047.8,2047.1,5.02516892]
[1770629823112,6.3586978,2047.6,2047.1,5.02516892]
[1770629823316,6.3586978,2047.6,2047.1,0.24446]
[1770629823818,6.3586978,2047.6,2047.1,5.01745094]
[1770629824021,6.3586978,2047.6,2047.1,0.24446]
[1770629824220,6.36264645,2047.6,2047.1,5.01284257]
[1770629826422,6.3586978,2048.1,2047.5,6.49925125]
[1770629827018,6.3586978,2048.1,2047.5,0.24441]
[1770629827414,6.36439934,2048.1,2047.5,0.24441]
[1770629827719,6.36439934,2048.1,2047.5,6.74366125]
[1770629827919,6.36439934,2048.1,2047.5,0.24441]
[1770629829426,6.36439934,2048.1,2047.5,6.74366125]
[1770629831927,6.36439934,2048.1,2047.5,0.24441]
[1770629832129,6.36439934,2048.1,2047.1,2.91941969]
[1770629832329,6.3586978,2048.0,2046.9,9.66314094]
[1770629832524,10.1466978,2048.0,2046.9,0.24447]
[1770629832719,6.3586978,2047.9,2046.9,0.24447]
[1770629832924,6.3586978,2047.8,2046.9,0.24447]
[1770629833823,9.25625884,2047.8,2046.9,0.24447]
[1770629834026,6.3586978,2047.7,2046.9,0.24447]
[1770629834229,6.3586978,2047.7,2046.6,6.49925125]
[1770629834531,6.3586978,2047.7,2046.5,9.41867094]
[1770629834933,6.3586978,2047.5,2046.5,9.41867094]
[1770629835129,6.39554677,2047.2,2046.3,0.24938127]
[1770629835822,6.39554677,2047.2,2046.3,6.58352477]
[1770629840327,6.22261461,2047.0,2046.3,6.58352477]
[1770629842136,47.02261461,2047.1,2046.3,6.58352477]
[1770629844135,6.22261461,2047.0,2046.3,6.58352477]
[1770629845332,6.22261461,2047.0,2045.8,2.91941969]
[1770629845535,6.22261461,2047.0,2045.8,6.41151265]
[1770629846235,6.22261461,2046.9,2045.8,6.41151265]
[1770629846538,6.22261461,2046.9,2045.8,6.41665073]
[1770629847043,6.22261461,2046.8,2045.8,6.41665073]
[1770629848332,6.22261461,2046.8,2046.2,6.41151265]
[1770629848532,6.22261461,2046.9,2046.1,0.24458]
[1770629848831,6.22261461,2046.9,2046.1,6.65609265]
[1770629849027,6.22261461,2046.9,2046.1,0.24458]
[1770629850539,6.22261461,2046.9,2045.8,0.00513808]
[1770629850540,6.22261461,2046.8,2045.8,0.00513808]
[1770629850840,9.12017565,2046.8,2045.8,0.00513808]
[1770629851034,74.93536927,2046.9,2045.8,6.41665073]
[1770629851035,6.22261461,2046.7,2045.8,6.41665073]
[1770629854835,6.22261461,2046.7,2045.8,0.00513808]
[1770629857646,9.12017565,2046.7,2045.8,0.00513808]
[1770629857847,6.22261461,2046.6,2045.8,0.00513808]
[1770629858043,6.22776385,2046.6,2045.8,0.00513808]
[1770629859148,6.22261461,2046.5,2045.8,0.00513808]
[1770629859747,6.22261461,2046.4,2045.2,6.69920022]
[1770629859944,6.22261461,2046.3,2045.2,6.69920022]
[1770629860147,40.8,2046.2,2045.2,6.69920022]
[1770629860342,6.22261461,2046.1,2045.2,6.69920022]
[1770629860542,6.22261461,2046.1,2045.2,0.29189136]
[1770629862543,6.22261461,2046.1,2045.2,0.00420379]
[1770629862752,9.12017565,2045.9,2044.7,6.69392017]
[1770629862945,6.22261461,2045.7,2044.7,6.69392017]
[1770629863247,6.22261461,2045.7,2044.7,0.28240752]
[1770629863448,6.22261461,2045.7,2044.6,6.41151265]
[1770629863845,6.22261461,2045.7,2044.6,6.4172605]
[1770629864450,6.22261461,2045.7,2044.2,6.68563182]
[1770629864653,6.22261461,2045.4,2044.2,6.68563182]
[1770629865043,6.22261461,2045.3,2044.2,6.68563182]
[1770629865452,6.22261461,2045.3,2044.2,6.68964662]
[1770629865645,6.42879439,2045.1,2044.2,6.68964662]
[1770629865844,6.43344739,2045.1,2044.2,6.68964662]
[1770629866347,6.43344739,2045.1,2044.2,6.41552745]
[1770629866650,6.43344739,2045.1,2044.2,0.0040148]
[1770629868444,6.43344739,2045.1,2044.2,6.2507704]
[1770629869448,6.43344739,2045.1,2043.9,0.24483]
[1770629869849,6.43344739,2045.1,2043.9,6.4915856]
[1770629870557,6.43344739,2045.1,2043.9,6.49721396]
[1770629870850,6.42879439,2044.9,2043.9,6.77636713]
[1770629871253,6.42879439,2044.7,2043.9,6.77636713]
[1770629876751,40.8,2044.6,2043.9,6.77636713]
[1770629877658,47.22879439,2044.6,2043.9,6.77636713]
[1770629878858,6.42879439,2044.8,2044.2,6.2467556]
[1770629879460,6.42879439,2044.7,2044.2,6.2467556]
[1770629881353,6.42879439,2044.7,2044.1,0.24482]
[1770629884863,6.42879439,2044.7,2044.1,6.4915756]
[1770629885858,6.42879439,2044.7,2044.1,0.24482]
[1770629886457,6.42879439,2044.7,2043.9,0.00562836]
[1770629886665,6.42879439,2044.7,2043.6,0.24487]
[1770629887156,9.32635543,2044.7,2043.6,0.24487]
[1770629887358,6.42879439,2044.6,2043.6,0.24487]
[1770629887657,6.42879439,2044.4,2043.2,6.2467556]
[1770629887859,6.42879439,2044.2,2043.2,6.2467556]
[1770629888060,6.42879439,2044.2,2043.1,6.2467556]
[1770629888654,6.42879439,2044.2,2043.1,6.2515371]
[1770629889158,9.30079426,2044.0,2043.1,0.0047815]
[1770629889356,6.42879439,2043.9,2042.7,6.2467556]
[1770629889759,6.42879439,2043.9,2042.5,6.2467556]
[1770629889760,6.42879439,2043.8,2042.5,6.2467556]
[1770629889959,6.42879439,2043.5,2042.1,6.2467556]
[1770629890156,6.42879439,2043.4,2042.1,6.2467556]
[1770629890355,6.42879439,2043.2,2042.1,6.25287674]
[1770629890556,6.42879439,2042.7,2041.4,2.9152933]
[1770629890767,6.42879439,2042.4,2041.1,6.4919256]
[1770629890955,5.76956091,2042.5,2041.2,6.2467556]
[1770629890956,6.42879439,2042.2,2041.2,6.2467556]
[1770629891268,9.32635543,2042.2,2041.0,6.2467556]
[1770629891453,6.42879439,2042.0,2041.0,6.2467556]
[1770629891658,6.42879439,2042.0,2041.0,0.00413566]
[1770629891866,6.42879439,2042.0,2041.0,6.25089126]
[1770629892467,6.42879439,2042.0,2041.1,6.2467556]
[1770629893768,6.42879439,2042.0,2041.2,6.2467556]
[1770629894772,47.22879439,2041.9,2041.2,6.2467556]
[1770629894966,47.23309964,2041.9,2041.2,6.2467556]
[1770629895169,40.80430525,2041.9,2041.2,6.2467556]
[1770629895772,6.09707483,2042.3,2041.5,6.21212039]
[1770629896269,6.09707483,2042.2,2041.5,6.21212039]
[1770629896469,46.89707483,2042.3,2041.5,6.21212039]
[1770629896665,6.10308057,2042.3,2041.5,6.21212039]
[1770629897368,6.10308057,2042.3,2041.4,0.24513]
[1770629897976,6.10308057,2042.3,2041.4,4.12661649]
[1770629900668,6.10308057,2042.3,2041.4,0.24513]
[1770629900874,6.10308057,2042.3,2041.4,4.03442351]
[1770629902574,6.25061425,2042.1,2041.4,4.03442351]
[1770629902773,40.8,2042.2,2041.6,3.92461093]
[1770629902968,6.25661999,2042.3,2041.6,3.92461093]
[1770629903474,47.05661999,2042.3,2041.6,3.92461093]
[1770629903669,6.25061999,2042.3,2042.0,0.24507]
[1770629903875,6.25061999,2042.3,2041.5,3.63203619]
[1770629904070,6.25061425,2042.1,2041.5,3.63203619]
[1770629904473,6.25061425,2042.1,2041.4,3.82144269]
[1770629904678,6.25061425,2042.1,2041.0,3.58044835]
[1770629904871,6.25061425,2042.1,2041.1,0.24518]
[1770629905275,6.25061425,2042.1,2041.1,3.77823276]
[1770629907772,6.25061425,2042.1,2041.4,3.38130072]
[1770629908171,6.25061425,2042.1,2041.3,3.58405332]
[1770629908672,6.25061425,2042.1,2041.5,3.57298386]
[1770629909681,40.8,2042.2,2041.7,0.2451]
[1770629910181,5.74e-06,2042.3,2041.8,3.34287145]
[1770629910477,5.74e-06,2042.3,2041.7,0.2451]
[1770629910680,6.25061425,2042.2,2041.2,3.33167944]
[1770629911072,6.25061425,2042.2,2041.1,0.24517]
[1770629911480,6.25061425,2042.2,2041.1,3.5356936]
[1770629913172,6.25061425,2042.2,2041.1,0.24517]
[1770629913780,6.25061425,2041.2,2039.8,6.03531]
[1770629913981,6.25061425,2041.1,2039.9,3.83430317]
[1770629914183,6.25061425,2041.1,2040.0,0.2453]
[1770629914390,6.25061425,2040.9,2040.0,4.03964859]
[1770629914677,47.05061425,2041.0,2040.3,3.78227147]
[1770629914882,40.8,2041.0,2040.3,3.78227147]
[1770629915180,6.25061425,2040.9,2040.0,0.00363451]
[1770629915380,6.25061425,2040.9,2040.0,3.76376285]
[1770629915579,6.25061425,2040.9,2040.0,3.71705146]
[1770629916485,6.25061425,2040.9,2040.2,3.67418356]
[1770629917180,6.25061425,2040.9,2040.0,0.00363451]
[1770629918580,6.25061425,2040.6,2039.5,0.24536]
[1770629918981,6.25061425,2040.6,2039.6,3.48504022]
[1770629919181,6.25061425,2040.6,2039.9,3.45078371]
[1770629919482,6.25061425,2040.6,2040.0,0.24531]
[1770629919884,6.25494117,2040.6,2040.0,0.24903262]
[1770629920280,6.25494117,2040.6,2040.0,3.67025693]
[1770629920485,6.25494117,2040.6,2040.0,0.24903262]
[1770629920885,6.25494117,2040.6,2040.0,0.00372262]
[1770629921381,6.25494117,2040.6,2039.4,3.63182821]
[1770629921582,6.25494117,2040.6,2039.4,0.24538]
[1770629922383,6.25494117,2040.6,2039.4,0.25013044]
[1770629922781,6.25494117,2040.6,2039.4,3.41899205]
[1770629922989,6.25494117,2040.6,2039.4,0.25013044]
[1770629923180,6.25061425,2040.4,2039.4,0.00475044]
[1770629923484,6.25061425,2040.4,2038.9,0.28581617]
[1770629923485,6.25061425,2040.3,2038.9,0.28581617]
[1770629923690,6.25061425,2040.3,2038.8,3.38629476]
[1770629923887,6.25061425,2040.1,2038.9,3.11301569]
[1770629924080,6.25061425,2040.1,2038.9,3.39542022]
[1770629924285,6.25061425,2040.1,2038.9,3.11301569]
[1770629924594,6.25061425,2040.1,2038.9,0.00260437]
[1770629924989,6.25061425,2040.1,2038.9,3.04182105]
[1770629925192,6.25061425,2040.1,2039.1,3.03921668]
[1770629925891,6.25061425,2040.1,2039.0,6.28311]
[1770629925892,6.25061425,2040.1,2039.3,3.0468644]
[1770629926090,6.25061425,2040.1,2039.5,3.0230985]
[1770629926292,6.25061425,2040.1,2039.4,0.24538]
[1770629926494,6.25061425,2040.1,2039.4,3.26177276]
[1770629927697,6.25061425,2040.1,2039.4,0.24538]
[1770629928494,6.25061425,2040.1,2038.9,0.00260437]
[1770629928993,8.83363344,2039.9,2038.3,0.24551]
[1770629929198,5.9360724,2039.9,2038.3,0.24551]
[1770629929598,5.9360724,2039.9,2038.4,2.93874502]
[1770629929899,5.9360724,2039.9,2038.5,3.18423502]
[1770629930498,5.9360724,2039.9,2038.5,0.24549]
[1770629931402,5.9360724,2039.9,2038.5,3.11469427]
[1770629932195,5.9360724,2039.9,2038.5,0.24549]
[1770629932700,5.9360724,2039.9,2037.9,9.14331823]
[1770629932897,8.82424575,2039.5,2037.9,0.24556]
[1770629933098,5.9360724,2039.3,2038.1,0.24554]
[1770629933291,5.9360724,2039.3,2038.1,3.07278581]
[1770629933492,5.9360724,2039.3,2038.2,2.82724581]
[1770629933693,5.9360724,2039.3,2038.1,6.2858]
[1770629933694,5.9360724,2039.3,2038.3,3.08771625]
[1770629933898,5.9360724,2039.3,2038.3,0.24551]
[1770629934199,5.9360724,2039.3,2038.3,3.05819171]
[1770629935199,5.9360724,2039.3,2038.5,2.77485733]
[1770629935404,5.9360724,2039.3,2038.7,3.02032733]
[1770629935598,5.9360724,2039.3,2038.7,0.24547]
[1770629935896,5.9360724,2039.3,2038.3,2.98887365]
[1770629936298,5.9360724,2039.3,2038.4,0.2455]
[1770629936504,5.9360724,2039.3,2038.4,3.20539682]
[1770629937096,5.9360724,2039.3,2038.4,0.2455]
[1770629937804,5.9360724,2039.3,2038.4,3.13119645]
[1770629939301,5.9360724,2039.3,2038.4,0.2455]
[1770629939998,5.9360724,2039.3,2038.4,3.21434147]
[1770629940394,5.9360724,2039.3,2038.6,3.18640532]
[1770629940601,5.9360724,2039.3,2038.9,2.93197942]
[1770629941202,31.706,2040.3,2039.2,3.1497314]
[1770629941203,5.4186924,2039.7,2039.2,3.1497314]
[1770629941506,5.4186924,2039.7,2039.2,0.24541]
[1770629941798,5.9360724,2039.9,2039.3,3.49802004]
[1770629942002,5.9360724,2039.9,2039.4,3.74340004]
[1770629942199,5.9360724,2040.1,2039.4,3.74340004]
[1770629942600,5.9360724,2040.1,2039.4,0.24538]
[1770629943306,5.9360724,2040.1,2039.4,3.71600054]
[1770629943506,5.9360724,2040.1,2039.4,0.24538]
[1770629944199,5.9360724,2040.1,2039.4,3.84953976]
[1770629945805,5.9360724,2040.1,2039.7,3.55150054]
[1770629946108,5.9360724,2040.2,2039.7,3.55150054]
[1770629946501,5.9360724,2040.2,2039.6,0.24536]
[1770629946700,5.9360724,2040.2,2039.1,3.51593376]
[1770629946904,5.9360724,2040.2,2039.2,0.24541]
[1770629947513,5.9360724,2040.2,2038.8,0.24545]
[1770629947914,5.9360724,2040.2,2038.8,3.72646383]
[1770629949219,5.9360724,2039.9,2038.8,0.24545]
[1770629949815,5.9360724,2039.9,2038.8,3.61098778]
[1770629950113,5.9360724,2039.9,2038.8,0.24545]
[1770629951316,8.83363344,2039.9,2038.8,0.24545]
[1770629951517,5.9360724,2039.8,2038.8,3.50597445]
[1770629951710,5.9360724,2039.8,2038.8,0.24545]
[1770629951911,5.9360724,2039.6,2038.8,0.24545]